[Event "2026 Biel Blitz Open"]
[Site "Biel, CH"]
[Date "2026.07.19"]
[Round "5"]
[White "Omar, Noaman"]
[Black "Ashwath Kaushik"]
[Result "0-1"]
[Board "13"]
[TimeControl "180+2"]
[WhiteFideId "9300244"]
[BlackFideId "33387230"]
[WhiteElo "2274"]
[BlackElo "2122"]
[WhiteTitle "IM"]
[BlackTitle "FM"]
[WhiteClock "0:00:18"]
[BlackClock "0:00:32"]
[Variant "Standard"]
[EndDate "2026.07.19"]
[EndTime "13:08:32"]

1. d4 {[%clk 0:03:03]}  d5 {[%clk 0:03:04]} 2. c4 {[%clk 0:03:04]}  e6 {[%clk 0:03:05]} 3. Nc3 {[%clk 0:03:04]}  dxc4 {[%clk 0:03:06]}
4. e4 {[%clk 0:03:03]}  c5 {[%clk 0:03:08]} 5. d5 {[%clk 0:03:01]}  exd5 {[%clk 0:03:09]} 6. Nxd5 {[%clk 0:02:58]}  Bd6 {[%clk 0:02:54]}
7. Bxc4 {[%clk 0:02:56]}  Be6 {[%clk 0:02:52]} 8. Ne2 {[%clk 0:02:54]}  Ne7 {[%clk 0:02:51]} 9. O-O {[%clk 0:02:50]}  O-O {[%clk 0:02:34]}
10. Bg5 {[%clk 0:02:30]}  Nbc6 {[%clk 0:02:31]} 11. Rc1 {[%clk 0:02:25]}  Rc8 {[%clk 0:02:21]} 12. a3 {[%clk 0:02:14]}  a6 {[%clk 0:02:22]}
13. Qd2 {[%clk 0:02:01]}  b5 {[%clk 0:02:21]} 14. Ba2 {[%clk 0:01:59]}  Bxd5 {[%clk 0:02:01]} 15. Bxd5 {[%clk 0:01:52]}  Qd7 {[%clk 0:01:47]}
16. Rfd1 {[%clk 0:01:46]}  Rfd8 {[%clk 0:01:15]} 17. Bh4 {[%clk 0:00:18]}  Qc7 {[%clk 0:01:10]} 18. Bg3 {[%clk 0:00:14]}  Nxd5 {[%clk 0:00:58]}
19. exd5 {[%clk 0:00:13]}  Ne7 {[%clk 0:00:58]} 20. Qg5 {[%clk 0:00:07]}  f6 {[%clk 0:00:48]} 21. Qg4 {[%clk 0:00:07]}  Qd7 {[%clk 0:00:45]}
22. Qe4 {[%clk 0:00:05]}  Qf5 {[%clk 0:00:42]} 23. Qe3 {[%clk 0:00:04]}  Nxd5 {[%clk 0:00:39]} 24. Qd3 {[%clk 0:00:04]}  Qxd3 {[%clk 0:00:37]}
25. Rxd3 {[%clk 0:00:05]}  Bxg3 {[%clk 0:00:38]} 26. hxg3 {[%clk 0:00:05]}  c4 {[%clk 0:00:36]} 27. Rd4 {[%clk 0:00:06]}  Nb6 {[%clk 0:00:32]}
28. Rcd1 {[%clk 0:00:07]}  Rxd4 {[%clk 0:00:33]} 29. Rxd4 {[%clk 0:00:08]}  Na4 {[%clk 0:00:32]} 30. Rd2 {[%clk 0:00:08]}  Kf7 {[%clk 0:00:31]}
31. Nc3 {[%clk 0:00:08]}  Nxc3 {[%clk 0:00:32]} 32. bxc3 {[%clk 0:00:09]}  Ke7 {[%clk 0:00:31]} 33. a4 {[%clk 0:00:07]}  Rd8 {[%clk 0:00:27]}
34. Rb2 {[%clk 0:00:10]}  Rd5 {[%clk 0:00:22]} 35. axb5 {[%clk 0:00:11]}  axb5 {[%clk 0:00:23]} 36. Ra2 {[%clk 0:00:11]}  Kd6 {[%clk 0:00:23]}
37. Ra6+ {[%clk 0:00:12]}  Kc5 {[%clk 0:00:24]} 38. Ra7 {[%clk 0:00:13]}  Rd3 {[%clk 0:00:23]} 39. Rxg7 {[%clk 0:00:13]}  Rxc3 {[%clk 0:00:24]}
40. Rf7 {[%clk 0:00:14]}  b4 {[%clk 0:00:24]} 41. Rxf6 {[%clk 0:00:15]}  b3 {[%clk 0:00:26]} 42. Rf5+ {[%clk 0:00:15]}  Kb4 {[%clk 0:00:27]}
43. Rf8 {[%clk 0:00:16]}  b2 {[%clk 0:00:28]} 44. Rb8+ {[%clk 0:00:16]}  Ka3 {[%clk 0:00:30]} 45. Ra8+ {[%clk 0:00:17]}  Kb3 {[%clk 0:00:31]}
46. Rb8+ {[%clk 0:00:18]}  Kc2 {[%clk 0:00:32]} 0-1

[Event "2026 Biel Blitz Open"]
[Site "Biel, CH"]
[Date "2026.07.19"]
[Round "5"]
[White "Xu, Chang(CQ)"]
[Black "Kukushkin, Ivan"]
[Result "0-1"]
[Board "14"]
[TimeControl "180+2"]
[WhiteFideId "8641757"]
[BlackFideId "11634103"]
[WhiteElo "2049"]
[BlackElo "2265"]
[BlackTitle "FM"]
[WhiteClock "0:00:12"]
[BlackClock "0:00:30"]
[Variant "Standard"]
[EndDate "2026.07.19"]
[EndTime "13:14:35"]

1. e4 {[%clk 0:03:02]}  c5 {[%clk 0:03:04]} 2. Nf3 {[%clk 0:03:03]}  d6 {[%clk 0:03:05]} 3. Bb5+ {[%clk 0:03:01]}  Nc6 {[%clk 0:02:56]}
4. O-O {[%clk 0:02:59]}  Bd7 {[%clk 0:02:56]} 5. Re1 {[%clk 0:02:59]}  Nf6 {[%clk 0:02:57]} 6. c3 {[%clk 0:02:59]}  a6 {[%clk 0:02:58]}
7. Bf1 {[%clk 0:02:57]}  Bg4 {[%clk 0:02:40]} 8. d4 {[%clk 0:02:58]}  cxd4 {[%clk 0:02:41]} 9. cxd4 {[%clk 0:02:58]}  e5 {[%clk 0:02:38]}
10. d5 {[%clk 0:02:52]}  Nd4 {[%clk 0:02:39]} 11. Nc3 {[%clk 0:02:38]}  Be7 {[%clk 0:02:37]} 12. Be3 {[%clk 0:02:36]}  Nxf3+ {[%clk 0:02:37]}
13. gxf3 {[%clk 0:02:36]}  Bd7 {[%clk 0:02:38]} 14. Kh1 {[%clk 0:02:32]}  Nh5 {[%clk 0:02:23]} 15. Qd2 {[%clk 0:02:31]}  O-O {[%clk 0:02:14]}
16. Bd3 {[%clk 0:02:07]}  f5 {[%clk 0:02:11]} 17. exf5 {[%clk 0:02:05]}  Bxf5 {[%clk 0:02:09]} 18. Be4 {[%clk 0:02:05]}  Qd7 {[%clk 0:02:02]}
19. Rg1 {[%clk 0:02:01]}  Kh8 {[%clk 0:01:53]} 20. Rac1 {[%clk 0:01:57]}  b5 {[%clk 0:01:31]} 21. a3 {[%clk 0:01:54]}  Nf6 {[%clk 0:01:23]}
22. Qe2 {[%clk 0:01:34]}  Nxe4 {[%clk 0:01:12]} 23. fxe4 {[%clk 0:01:33]}  Bg6 {[%clk 0:01:14]} 24. Rg2 {[%clk 0:01:17]}  Qh3 {[%clk 0:01:09]}
25. Rg3 {[%clk 0:01:12]}  Qh4 {[%clk 0:01:08]} 26. Qg4 {[%clk 0:00:59]}  Qxg4 {[%clk 0:00:59]} 27. Rxg4 {[%clk 0:00:59]}  Rac8 {[%clk 0:00:55]}
28. Rcg1 {[%clk 0:00:38]}  Bh5 {[%clk 0:00:54]} 29. R4g3 {[%clk 0:00:33]}  Bf3+ {[%clk 0:00:53]} 30. Rxf3 {[%clk 0:00:33]}  Rxf3 {[%clk 0:00:53]}
31. Kg2 {[%clk 0:00:33]}  Rff8 {[%clk 0:00:51]} 32. Kf1 {[%clk 0:00:34]}  Rc4 {[%clk 0:00:48]} 33. Ke2 {[%clk 0:00:32]}  Rfc8 {[%clk 0:00:48]}
34. Kd3 {[%clk 0:00:32]}  b4 {[%clk 0:00:49]} 35. axb4 {[%clk 0:00:33]}  Rxb4 {[%clk 0:00:49]} 36. Bc1 {[%clk 0:00:33]}  a5 {[%clk 0:00:48]}
37. Rf1 {[%clk 0:00:29]}  Rd4+ {[%clk 0:00:46]} 38. Ke2 {[%clk 0:00:30]}  a4 {[%clk 0:00:43]} 39. f4 {[%clk 0:00:28]}  exf4 {[%clk 0:00:43]}
40. Rxf4 {[%clk 0:00:23]}  Bf6 {[%clk 0:00:40]} 41. Rf3 {[%clk 0:00:19]}  a3 {[%clk 0:00:34]} 42. bxa3 {[%clk 0:00:19]}  Rdc4 {[%clk 0:00:36]}
43. e5 {[%clk 0:00:15]}  Bxe5 {[%clk 0:00:30]} 44. Bd2 {[%clk 0:00:12]}  Bxc3 {[%clk 0:00:30]} 0-1

[Event "2026 Biel Blitz Open"]
[Site "Biel, CH"]
[Date "2026.07.19"]
[Round "5"]
[White "Tkhoruk, Roman"]
[Black "Fogo Esquivel, Levi Kalani Alexander"]
[Result "1/2-1/2"]
[Board "16"]
[TimeControl "180+2"]
[WhiteFideId "34161589"]
[BlackFideId "5183189"]
[WhiteElo "2055"]
[BlackElo "2219"]
[BlackTitle "FM"]
[WhiteClock "0:00:13"]
[BlackClock "0:00:35"]
[Variant "Standard"]
[EndDate "2026.07.19"]
[EndTime "13:08:54"]

1. e4 {[%clk 0:03:04]}  e5 {[%clk 0:03:04]} 2. Nf3 {[%clk 0:03:05]}  d5 {[%clk 0:03:05]} 3. Nxe5 {[%clk 0:03:00]}  Nf6 {[%clk 0:03:06]}
4. d4 {[%clk 0:02:57]}  Nxe4 {[%clk 0:03:07]} 5. Bd3 {[%clk 0:02:55]}  Nd7 {[%clk 0:03:08]} 6. Nxd7 {[%clk 0:02:52]}  Bxd7 {[%clk 0:03:08]}
7. O-O {[%clk 0:02:52]}  Be7 {[%clk 0:03:08]} 8. Nd2 {[%clk 0:02:37]}  Nxd2 {[%clk 0:02:22]} 9. Bxd2 {[%clk 0:02:36]}  c6 {[%clk 0:02:14]}
10. Qh5 {[%clk 0:02:16]}  g6 {[%clk 0:02:15]} 11. Qh6 {[%clk 0:02:13]}  Bf8 {[%clk 0:02:06]} 12. Rfe1+ {[%clk 0:02:11]}  Be6 {[%clk 0:02:06]}
13. Qg5 {[%clk 0:01:48]}  Qxg5 {[%clk 0:02:06]} 14. Bxg5 {[%clk 0:01:49]}  Bg7 {[%clk 0:02:07]} 15. c3 {[%clk 0:01:50]}  Kd7 {[%clk 0:02:08]}
16. Re2 {[%clk 0:01:43]}  Rhe8 {[%clk 0:02:02]} 17. Rae1 {[%clk 0:01:34]}  f6 {[%clk 0:02:02]} 18. Bf4 {[%clk 0:01:27]}  Bf7 {[%clk 0:02:03]}
19. f3 {[%clk 0:01:24]}  Rxe2 {[%clk 0:02:01]} 20. Rxe2 {[%clk 0:01:25]}  Re8 {[%clk 0:02:02]} 21. Rxe8 {[%clk 0:01:23]}  Bxe8 {[%clk 0:02:03]}
22. Kf2 {[%clk 0:01:17]}  Bf8 {[%clk 0:02:03]} 23. b4 {[%clk 0:01:03]}  g5 {[%clk 0:01:45]} 24. Bb8 {[%clk 0:01:03]}  Bg6 {[%clk 0:01:07]}
25. Bxg6 {[%clk 0:01:03]}  hxg6 {[%clk 0:01:08]} 26. Bxa7 {[%clk 0:01:03]}  Bd6 {[%clk 0:01:10]} 27. Bb6 {[%clk 0:00:57]}  f5 {[%clk 0:01:07]}
28. g3 {[%clk 0:00:56]}  g4 {[%clk 0:00:57]} 29. fxg4 {[%clk 0:00:57]}  fxg4 {[%clk 0:00:58]} 30. Ke3 {[%clk 0:00:52]}  Ke6 {[%clk 0:01:00]}
31. Bd8 {[%clk 0:00:44]}  Kf5 {[%clk 0:00:59]} 32. a4 {[%clk 0:00:41]}  Bb8 {[%clk 0:00:54]} 33. b5 {[%clk 0:00:39]}  cxb5 {[%clk 0:00:53]}
34. axb5 {[%clk 0:00:39]}  Bd6 {[%clk 0:00:55]} 35. Kd3 {[%clk 0:00:37]}  Ba3 {[%clk 0:00:49]} 36. Bb6 {[%clk 0:00:26]}  Bc1 {[%clk 0:00:42]}
37. c4 {[%clk 0:00:27]}  dxc4+ {[%clk 0:00:43]} 38. Kxc4 {[%clk 0:00:28]}  Be3 {[%clk 0:00:44]} 39. Bc7 {[%clk 0:00:26]}  Bg1 {[%clk 0:00:43]}
40. d5 {[%clk 0:00:28]}  Bxh2 {[%clk 0:00:44]} 41. Kc5 {[%clk 0:00:26]}  Bg1+ {[%clk 0:00:37]} 42. Kd6 {[%clk 0:00:27]}  Ke4 {[%clk 0:00:39]}
43. Ke6 {[%clk 0:00:28]}  Bf2 {[%clk 0:00:36]} 44. b6 {[%clk 0:00:26]}  Kf3 {[%clk 0:00:35]} 45. d6 {[%clk 0:00:26]}  Bxg3 {[%clk 0:00:35]}
46. d7 {[%clk 0:00:23]}  Bh4 {[%clk 0:00:32]} 47. Bd6 {[%clk 0:00:11]}  Bd8 {[%clk 0:00:35]} 48. Bc7 {[%clk 0:00:12]}  Bh4 {[%clk 0:00:36]}
49. Bd6 {[%clk 0:00:13]}  Bd8 {[%clk 0:00:27]} 50. Bc7 {[%clk 0:00:13]}  Bh4 {[%clk 0:00:35]} 1/2-1/2

[Event "2026 Biel Blitz Open"]
[Site "Biel, CH"]
[Date "2026.07.19"]
[Round "5"]
[White "Rappazzo, Johannes"]
[Black "Kolly, Jacques"]
[Result "1-0"]
[Board "17"]
[TimeControl "180+2"]
[WhiteFideId "1340069"]
[BlackFideId "1302183"]
[WhiteElo "2032"]
[BlackElo "2203"]
[WhiteTitle "FM"]
[BlackTitle "FM"]
[WhiteClock "0:00:46"]
[BlackClock "0:00:03"]
[Variant "Standard"]
[EndDate "2026.07.19"]
[EndTime "13:10:44"]

1. e4 {[%clk 0:03:03]}  e6 {[%clk 0:03:03]} 2. d4 {[%clk 0:03:04]}  d5 {[%clk 0:03:05]} 3. Nc3 {[%clk 0:03:05]}  Nf6 {[%clk 0:03:06]}
4. Bg5 {[%clk 0:03:06]}  Bb4 {[%clk 0:03:08]} 5. e5 {[%clk 0:03:06]}  h6 {[%clk 0:03:09]} 6. Bd2 {[%clk 0:03:06]}  Bxc3 {[%clk 0:02:55]}
7. bxc3 {[%clk 0:03:07]}  Ne4 {[%clk 0:02:56]} 8. Bc1 {[%clk 0:03:08]}  c5 {[%clk 0:02:55]} 9. Ne2 {[%clk 0:03:08]}  cxd4 {[%clk 0:02:48]}
10. cxd4 {[%clk 0:03:07]}  Qa5+ {[%clk 0:02:46]} 11. c3 {[%clk 0:03:06]}  Nc6 {[%clk 0:02:36]} 12. f3 {[%clk 0:02:52]}  Nxc3 {[%clk 0:02:16]}
13. Qd2 {[%clk 0:02:53]}  Nxe2 {[%clk 0:02:09]} 14. Qxa5 {[%clk 0:02:47]}  Nxa5 {[%clk 0:02:10]} 15. Bxe2 {[%clk 0:02:48]}  O-O {[%clk 0:01:51]}
16. h4 {[%clk 0:02:43]}  Bd7 {[%clk 0:01:48]} 17. h5 {[%clk 0:02:41]}  Rac8 {[%clk 0:01:47]} 18. g4 {[%clk 0:02:37]}  Rc2 {[%clk 0:01:17]}
19. Bd3 {[%clk 0:02:17]}  Rc7 {[%clk 0:01:06]} 20. g5 {[%clk 0:02:13]}  hxg5 {[%clk 0:01:04]} 21. h6 {[%clk 0:02:01]}  gxh6 {[%clk 0:00:23]}
22. Rxh6 {[%clk 0:01:57]}  Ba4 {[%clk 0:00:16]} 23. Bxg5 {[%clk 0:01:47]}  f5 {[%clk 0:00:06]} 24. exf6 {[%clk 0:01:12]}  Rc3 {[%clk 0:00:07]}
25. Bh7+ {[%clk 0:01:01]}  Kf7 {[%clk 0:00:08]} 26. Bg6+ {[%clk 0:01:02]}  Kg8 {[%clk 0:00:09]} 27. f7+ {[%clk 0:00:51]}  Kg7 {[%clk 0:00:10]}
28. Be7 {[%clk 0:00:39]}  Kxh6 {[%clk 0:00:09]} 29. Bxf8+ {[%clk 0:00:39]}  Kxg6 {[%clk 0:00:11]} 30. Bb4 {[%clk 0:00:40]}  Rxf3 {[%clk 0:00:08]}
31. f8=Q {[%clk 0:00:31]}  Rxf8 {[%clk 0:00:09]} 32. Bxf8 {[%clk 0:00:32]}  Kf5 {[%clk 0:00:10]} 33. Kd2 {[%clk 0:00:29]}  Nc4+ {[%clk 0:00:09]}
34. Kc3 {[%clk 0:00:30]}  b5 {[%clk 0:00:06]} 35. Rf1+ {[%clk 0:00:30]}  Ke4 {[%clk 0:00:04]} 36. Re1+ {[%clk 0:00:31]}  Kf5 {[%clk 0:00:05]}
37. Rf1+ {[%clk 0:00:23]}  Ke4 {[%clk 0:00:07]} 38. Bh6 {[%clk 0:00:21]}  a5 {[%clk 0:00:07]} 39. Rf4+ {[%clk 0:00:24]}  Ke3 {[%clk 0:00:06]}
40. Rf6 {[%clk 0:00:25]}  Ke2 {[%clk 0:00:00]} 41. Rxe6+ {[%clk 0:01:21]}  Kf3 {[%clk 0:00:05]} 42. Kd3 {[%clk 0:01:17]}  b4 {[%clk 0:00:04]}
43. Rf6 {[%clk 0:01:16]}  Kg4 {[%clk 0:00:05]} 44. Rf4+ {[%clk 0:01:10]}  Kh5 {[%clk 0:00:03]} 45. Bf8 {[%clk 0:01:10]}  Bb5 {[%clk 0:00:04]}
46. Rf5+ {[%clk 0:00:54]}  Kg4 {[%clk 0:00:03]} 47. Rxd5 {[%clk 0:00:55]}  Na3+ {[%clk 0:00:00]} 48. Ke4 {[%clk 0:00:46]} 1-0

[Event "2026 Biel Blitz Open"]
[Site "Biel, CH"]
[Date "2026.07.19"]
[Round "5"]
[White "Gautier, Anand"]
[Black "Stefan, Romulus-Cristian"]
[Result "1-0"]
[Board "18"]
[TimeControl "180+2"]
[WhiteFideId "26010186"]
[BlackFideId "1232835"]
[WhiteElo "2198"]
[BlackElo "2048"]
[WhiteTitle "FM"]
[BlackTitle "CM"]
[WhiteClock "0:00:11"]
[BlackClock "0:00:18"]
[Variant "Standard"]
[EndDate "2026.07.19"]
[EndTime "13:16:26"]

1. e4 {[%clk 0:03:02]}  e5 {[%clk 0:03:03]} 2. Nf3 {[%clk 0:03:05]}  Nc6 {[%clk 0:03:04]} 3. Bc4 {[%clk 0:03:06]}  Nf6 {[%clk 0:03:05]}
4. d3 {[%clk 0:03:08]}  Be7 {[%clk 0:03:05]} 5. O-O {[%clk 0:03:08]}  O-O {[%clk 0:03:05]} 6. a4 {[%clk 0:03:09]}  a5 {[%clk 0:03:06]}
7. Nc3 {[%clk 0:03:07]}  d6 {[%clk 0:03:06]} 8. h3 {[%clk 0:03:08]}  Be6 {[%clk 0:03:04]} 9. Re1 {[%clk 0:03:00]}  Qd7 {[%clk 0:03:04]}
10. Nd5 {[%clk 0:02:56]}  Bxd5 {[%clk 0:03:04]} 11. exd5 {[%clk 0:02:57]}  Nb4 {[%clk 0:03:05]} 12. d4 {[%clk 0:02:58]}  e4 {[%clk 0:03:05]}
13. Nd2 {[%clk 0:02:30]}  c6 {[%clk 0:03:05]} 14. dxc6 {[%clk 0:02:23]}  bxc6 {[%clk 0:03:06]} 15. c3 {[%clk 0:02:20]}  d5 {[%clk 0:02:23]}
16. Bf1 {[%clk 0:02:20]}  Na6 {[%clk 0:02:23]} 17. f3 {[%clk 0:02:20]}  exf3 {[%clk 0:02:22]} 18. Nxf3 {[%clk 0:02:16]}  Bd6 {[%clk 0:02:23]}
19. Bd3 {[%clk 0:02:13]}  Rfe8 {[%clk 0:02:15]} 20. Bd2 {[%clk 0:02:00]}  Ne4 {[%clk 0:02:02]} 21. Ng5 {[%clk 0:01:14]}  Nxg5 {[%clk 0:01:26]}
22. Bxg5 {[%clk 0:01:15]}  h6 {[%clk 0:01:27]} 23. Bd2 {[%clk 0:01:14]}  Nc7 {[%clk 0:01:20]} 24. Qf3 {[%clk 0:01:13]}  Rxe1+ {[%clk 0:01:16]}
25. Rxe1 {[%clk 0:01:14]}  Re8 {[%clk 0:01:17]} 26. Rxe8+ {[%clk 0:01:11]}  Qxe8 {[%clk 0:01:15]} 27. Qf5 {[%clk 0:01:10]}  g6 {[%clk 0:01:13]}
28. Qg4 {[%clk 0:01:07]}  h5 {[%clk 0:01:00]} 29. Qe2 {[%clk 0:01:07]}  Qxe2 {[%clk 0:01:00]} 30. Bxe2 {[%clk 0:01:08]}  Ne6 {[%clk 0:01:01]}
31. Kf2 {[%clk 0:01:07]}  Kg7 {[%clk 0:00:58]} 32. Bf1 {[%clk 0:00:57]}  f5 {[%clk 0:00:53]} 33. h4 {[%clk 0:00:48]}  Kf6 {[%clk 0:00:52]}
34. c4 {[%clk 0:00:39]}  Nxd4 {[%clk 0:00:52]} 35. cxd5 {[%clk 0:00:31]}  Bc5 {[%clk 0:00:39]} 36. Ke1 {[%clk 0:00:17]}  cxd5 {[%clk 0:00:39]}
37. Bxa5 {[%clk 0:00:17]}  Ke5 {[%clk 0:00:33]} 38. Bc3 {[%clk 0:00:15]}  Ke4 {[%clk 0:00:33]} 39. a5 {[%clk 0:00:16]}  Nc2+ {[%clk 0:00:24]}
40. Kd1 {[%clk 0:00:16]}  Ne3+ {[%clk 0:00:29]} 41. Ke2 {[%clk 0:00:17]}  d4 {[%clk 0:00:27]} 42. Bd2 {[%clk 0:00:13]}  d3+ {[%clk 0:00:27]}
43. Ke1 {[%clk 0:00:15]}  Nc2+ {[%clk 0:00:23]} 44. Kd1 {[%clk 0:00:16]}  Nd4 {[%clk 0:00:24]} 45. b4 {[%clk 0:00:16]}  Ba7 {[%clk 0:00:23]}
46. g3 {[%clk 0:00:12]}  Nb5 {[%clk 0:00:20]} 47. Bg2+ {[%clk 0:00:12]}  Kd4 {[%clk 0:00:21]} 48. Bc6 {[%clk 0:00:08]}  Kc4 {[%clk 0:00:22]}
49. Be8 {[%clk 0:00:10]}  Bf2 {[%clk 0:00:15]} 50. Bxg6 {[%clk 0:00:08]}  Bxg3 {[%clk 0:00:16]} 51. Bxf5 {[%clk 0:00:06]}  Bxh4 {[%clk 0:00:17]}
52. Be6+ {[%clk 0:00:06]}  Kd4 {[%clk 0:00:16]} 53. Bf7 {[%clk 0:00:05]}  Be7 {[%clk 0:00:16]} 54. Bxh5 {[%clk 0:00:06]}  Kc4 {[%clk 0:00:15]}
55. Bf7+ {[%clk 0:00:07]}  Kd4 {[%clk 0:00:17]} 56. Be8 {[%clk 0:00:09]}  Kc4 {[%clk 0:00:17]} 57. Bf7+ {[%clk 0:00:10]}  Kd4 {[%clk 0:00:19]}
58. Kc1 {[%clk 0:00:11]}  Bf8 {[%clk 0:00:18]} 1-0

[Event "2026 Biel Blitz Open"]
[Site "Biel, CH"]
[Date "2026.07.19"]
[Round "5"]
[White "Liu, Bei"]
[Black "Baury, Noe"]
[Result "1-0"]
[Board "19"]
[TimeControl "180+2"]
[WhiteFideId "8603596"]
[BlackFideId "651086867"]
[WhiteElo "2170"]
[BlackElo "1886"]
[WhiteClock "0:01:40"]
[BlackClock "0:00:50"]
[Variant "Standard"]
[EndDate "2026.07.19"]
[EndTime "13:06:51"]

1. e4 {[%clk 0:03:04]}  e5 {[%clk 0:03:04]} 2. Nf3 {[%clk 0:03:05]}  Nc6 {[%clk 0:03:05]} 3. Bb5 {[%clk 0:03:06]}  g6 {[%clk 0:03:07]}
4. c3 {[%clk 0:03:06]}  Bg7 {[%clk 0:03:08]} 5. O-O {[%clk 0:03:05]}  Nge7 {[%clk 0:03:08]} 6. d4 {[%clk 0:03:05]}  exd4 {[%clk 0:03:10]}
7. cxd4 {[%clk 0:03:07]}  a6 {[%clk 0:03:11]} 8. Ba4 {[%clk 0:03:06]}  b5 {[%clk 0:03:12]} 9. Bb3 {[%clk 0:03:06]}  d6 {[%clk 0:03:13]}
10. Nc3 {[%clk 0:02:59]}  O-O {[%clk 0:03:14]} 11. a4 {[%clk 0:03:00]}  Rb8 {[%clk 0:02:45]} 12. h3 {[%clk 0:02:58]}  b4 {[%clk 0:02:29]}
13. Nd5 {[%clk 0:02:59]}  Nxd5 {[%clk 0:02:28]} 14. Bxd5 {[%clk 0:03:00]}  Ne7 {[%clk 0:02:29]} 15. Bb3 {[%clk 0:02:59]}  c5 {[%clk 0:02:28]}
16. Bg5 {[%clk 0:02:54]}  h6 {[%clk 0:02:20]} 17. Be3 {[%clk 0:02:49]}  cxd4 {[%clk 0:02:00]} 18. Bxd4 {[%clk 0:02:50]}  Bb7 {[%clk 0:01:56]}
19. Rc1 {[%clk 0:02:31]}  d5 {[%clk 0:01:53]} 20. Bxg7 {[%clk 0:02:30]}  Kxg7 {[%clk 0:01:53]} 21. Qd4+ {[%clk 0:02:30]}  Kh7 {[%clk 0:01:49]}
22. Rfd1 {[%clk 0:02:05]}  dxe4 {[%clk 0:01:39]} 23. Qf6 {[%clk 0:02:06]}  Qa5 {[%clk 0:01:31]} 24. Qxe7 {[%clk 0:01:52]}  exf3 {[%clk 0:01:29]}
25. Bxf7 {[%clk 0:01:51]}  Qg5 {[%clk 0:01:12]} 26. Qxg5 {[%clk 0:01:49]}  hxg5 {[%clk 0:01:13]} 27. Rc7 {[%clk 0:01:41]}  Kh6 {[%clk 0:00:47]}
28. Rd6 {[%clk 0:01:42]}  Rxf7 {[%clk 0:00:49]} 29. Rxf7 {[%clk 0:01:42]}  fxg2 {[%clk 0:00:50]} 30. Rb6 {[%clk 0:01:40]} 1-0

[Event "2026 Biel Blitz Open"]
[Site "Biel, CH"]
[Date "2026.07.19"]
[Round "5"]
[White "Coban, Ege"]
[Black "Fernandes Barbosa Dos Santos, Gabriel"]
[Result "0-1"]
[Board "20"]
[TimeControl "180+2"]
[WhiteFideId "26320304"]
[BlackFideId "1354388"]
[WhiteElo "1936"]
[BlackElo "2167"]
[BlackTitle "CM"]
[WhiteClock "0:00:47"]
[BlackClock "0:00:23"]
[Variant "Standard"]
[EndDate "2026.07.19"]
[EndTime "13:07:33"]

1. e4 {[%clk 0:03:03]}  c5 {[%clk 0:03:03]} 2. Nf3 {[%clk 0:03:04]}  d6 {[%clk 0:03:04]} 3. d4 {[%clk 0:03:05]}  cxd4 {[%clk 0:03:05]}
4. Nxd4 {[%clk 0:03:06]}  Nf6 {[%clk 0:03:05]} 5. Nc3 {[%clk 0:03:08]}  g6 {[%clk 0:03:05]} 6. Be3 {[%clk 0:03:08]}  Bg7 {[%clk 0:03:06]}
7. f3 {[%clk 0:03:09]}  O-O {[%clk 0:03:06]} 8. Qd2 {[%clk 0:03:11]}  Nc6 {[%clk 0:03:07]} 9. O-O-O {[%clk 0:03:11]}  Nxd4 {[%clk 0:03:06]}
10. Bxd4 {[%clk 0:03:11]}  Be6 {[%clk 0:03:07]} 11. h4 {[%clk 0:03:09]}  Qa5 {[%clk 0:03:05]} 12. Kb1 {[%clk 0:03:10]}  Rfc8 {[%clk 0:03:05]}
13. a3 {[%clk 0:03:11]}  Rab8 {[%clk 0:03:00]} 14. h5 {[%clk 0:03:12]}  b5 {[%clk 0:03:00]} 15. hxg6 {[%clk 0:03:13]}  hxg6 {[%clk 0:03:00]}
16. Qg5 {[%clk 0:03:14]}  Rc5 {[%clk 0:02:53]} 17. Bxc5 {[%clk 0:02:51]}  b4 {[%clk 0:02:54]} 18. axb4 {[%clk 0:02:36]}  Rxb4 {[%clk 0:02:48]}
19. Bxb4 {[%clk 0:02:23]}  Qxg5 {[%clk 0:02:46]} 20. g4 {[%clk 0:02:08]}  a5 {[%clk 0:02:40]} 21. Ba3 {[%clk 0:02:06]}  Qe3 {[%clk 0:02:26]}
22. Bg2 {[%clk 0:01:50]}  Qb6 {[%clk 0:02:06]} 23. Rd3 {[%clk 0:01:46]}  Bc4 {[%clk 0:02:05]} 24. Rd2 {[%clk 0:01:38]}  Nxg4 {[%clk 0:01:21]}
25. Na4 {[%clk 0:01:34]}  Qb5 {[%clk 0:01:13]} 26. fxg4 {[%clk 0:01:24]}  Qxa4 {[%clk 0:01:13]} 27. Rhd1 {[%clk 0:01:16]}  Qb5 {[%clk 0:01:11]}
28. Bf3 {[%clk 0:01:12]}  a4 {[%clk 0:01:10]} 29. Rf2 {[%clk 0:01:04]}  Bxb2 {[%clk 0:00:56]} 30. Bxb2 {[%clk 0:01:03]}  a3 {[%clk 0:00:57]}
31. c3 {[%clk 0:01:05]}  Qb3 {[%clk 0:00:49]} 32. Rd4 {[%clk 0:00:58]}  Qa2+ {[%clk 0:00:42]} 33. Kc1 {[%clk 0:00:59]}  Bb3 {[%clk 0:00:27]}
34. Rd3 {[%clk 0:00:43]}  axb2+ {[%clk 0:00:27]} 35. Rxb2 {[%clk 0:00:45]}  Qa1+ {[%clk 0:00:27]} 36. Rb1 {[%clk 0:00:46]}  Qa3+ {[%clk 0:00:25]}
37. Kd2 {[%clk 0:00:47]}  Qa2+ {[%clk 0:00:23]} 0-1